[Event "Late-Titled-Tuesday-Blitz-April-30-2024"]
[Site "Chess.com"]
[Date "2024.04.30"]
[Round "4"]
[White "rionelG"]
[Black "katharinareinecke"]
[Result "1-0"]
[WhiteElo "2283"]
[BlackElo "2041"]
[TimeControl "180+1"]
[EndTime "14:41:03 PDT"]
[Termination "rionelG won by checkmate"]

1. e4 {[%clk 0:03:00.9]} 1... c6 {[%clk 0:02:59.4]} 2. d4 {[%clk 0:03:00.3]}
2... d5 {[%clk 0:02:59.4]} 3. e5 {[%clk 0:03:00.9]} 3... Bf5 {[%clk 0:02:58.9]}
4. Nf3 {[%clk 0:03:00.3]} 4... e6 {[%clk 0:02:58.4]} 5. Be2 {[%clk 0:03:00.8]}
5... Ne7 {[%clk 0:02:55.2]} 6. O-O {[%clk 0:02:58.8]} 6... Bg6 {[%clk
0:02:52.2]} 7. Nbd2 {[%clk 0:02:58.4]} 7... Nf5 {[%clk 0:02:50.8]} 8. Nb3 {[%clk
0:02:57.6]} 8... Be7 {[%clk 0:02:50.4]} 9. h3 {[%clk 0:02:57]} 9... O-O {[%clk
0:02:49.8]} 10. Bd2 {[%clk 0:02:48.9]} 10... Nd7 {[%clk 0:02:49.7]} 11. g4
{[%clk 0:02:47.2]} 11... Nh4 {[%clk 0:02:48.9]} 12. Nxh4 {[%clk 0:02:46.8]}
12... Bxh4 {[%clk 0:02:49.8]} 13. f4 {[%clk 0:02:42.2]} 13... h5 {[%clk
0:02:34.6]} 14. g5 {[%clk 0:02:35.3]} 14... Bf5 {[%clk 0:02:31.6]} 15. Bxh5
{[%clk 0:02:12.5]} 15... f6 {[%clk 0:02:25.1]} 16. Bg4 {[%clk 0:02:04.3]} 16...
fxg5 {[%clk 0:02:21.9]} 17. fxg5 {[%clk 0:02:03.6]} 17... Bxg5 {[%clk
0:02:15.1]} 18. Bxf5 {[%clk 0:02:02.7]} 18... Rxf5 {[%clk 0:02:05.4]} 19. Rxf5
{[%clk 0:02:01.5]} 19... exf5 {[%clk 0:02:05.3]} 20. Qh5 {[%clk 0:01:58.7]}
20... Bxd2 {[%clk 0:02:00.8]} 21. Nxd2 {[%clk 0:01:59.6]} 21... c5 {[%clk
0:01:37.4]} 22. Rf1 {[%clk 0:01:48.4]} 22... cxd4 {[%clk 0:01:33.5]} 23. Qxf5
{[%clk 0:01:45.5]} 23... Nf8 {[%clk 0:01:09.3]} 24. Qf7+ {[%clk 0:01:37.7]}
24... Kh8 {[%clk 0:01:09.1]} 25. e6 {[%clk 0:01:33.2]} 25... Qg5+ {[%clk
0:01:05.2]} 26. Kh1 {[%clk 0:01:32.6]} 26... Qh6 {[%clk 0:00:43]} 27. Qxf8+
{[%clk 0:00:15.5]} 27... Rxf8 {[%clk 0:00:42]} 28. Rxf8+ {[%clk 0:00:16.4]}
28... Kh7 {[%clk 0:00:41.8]} 29. e7 {[%clk 0:00:16.7]} 29... Qxh3+ {[%clk
0:00:40.7]} 30. Kg1 {[%clk 0:00:16.9]} 30... Qg3+ {[%clk 0:00:41]} 31. Kf1
{[%clk 0:00:16.4]} 31... Qe3 {[%clk 0:00:41.1]} 32. e8=Q {[%clk 0:00:14.9]}
32... Qh3+ {[%clk 0:00:39]} 33. Ke2 {[%clk 0:00:12.3]} 33... Qg4+ {[%clk
0:00:32.9]} 34. Kd3 {[%clk 0:00:10.6]} 34... Qg3+ {[%clk 0:00:29.5]} 35. Kxd4
{[%clk 0:00:09.4]} 35... Qg1+ {[%clk 0:00:27.4]} 36. Kxd5 {[%clk 0:00:06]} 36...
Qg5+ {[%clk 0:00:24.1]} 37. Ke6 {[%clk 0:00:04.1]} 37... Qe3+ {[%clk 0:00:20.8]}
38. Kf7 {[%clk 0:00:02.4]} 38... Qf4+ {[%clk 0:00:18.3]} 39. Ke7 {[%clk
0:00:02.6]} 39... Qe3+ {[%clk 0:00:17.6]} 40. Kd7 {[%clk 0:00:02.3]} 40... Qxd2+
{[%clk 0:00:17.7]} 41. Kc7 {[%clk 0:00:02.6]} 41... Qxc2+ {[%clk 0:00:16.9]} 42.
Kb8 {[%clk 0:00:02.5]} 42... Qh2+ {[%clk 0:00:14.8]} 43. Ka8 {[%clk 0:00:02.9]}
43... Qxb2 {[%clk 0:00:08.4]} 44. Rh8# {[%clk 0:00:02.5]} 1-0

[Event "Late-Titled-Tuesday-Blitz-April-30-2024"]
[Site "Chess.com"]
[Date "2024.04.30"]
[Round "4"]
[White "db-banana"]
[Black "PawnEatingZombie"]
[Result "1-0"]
[WhiteElo "2472"]
[BlackElo "2208"]
[TimeControl "180+1"]
[EndTime "14:41:07 PDT"]
[Termination "db-banana won on time"]

1. e4 {[%clk 0:03:00]} 1... c5 {[%clk 0:02:59.3]} 2. d4 {[%clk 0:02:56.3]} 2...
cxd4 {[%clk 0:02:58.2]} 3. c3 {[%clk 0:02:55.4]} 3... Nf6 {[%clk 0:02:58.7]} 4.
e5 {[%clk 0:02:50.1]} 4... Nd5 {[%clk 0:02:58.8]} 5. cxd4 {[%clk 0:02:50.8]}
5... e6 {[%clk 0:02:57.6]} 6. Nf3 {[%clk 0:02:49.2]} 6... d6 {[%clk 0:02:57.6]}
7. Bb5+ {[%clk 0:02:45.8]} 7... Bd7 {[%clk 0:02:53.4]} 8. Bxd7+ {[%clk
0:02:45.9]} 8... Qxd7 {[%clk 0:02:53.5]} 9. O-O {[%clk 0:02:44.7]} 9... Be7
{[%clk 0:02:51.3]} 10. Nc3 {[%clk 0:02:44.1]} 10... Nxc3 {[%clk 0:02:49.2]} 11.
bxc3 {[%clk 0:02:45]} 11... Nc6 {[%clk 0:02:47.5]} 12. Bf4 {[%clk 0:02:37.7]}
12... dxe5 {[%clk 0:02:44.4]} 13. Nxe5 {[%clk 0:02:37.4]} 13... Nxe5 {[%clk
0:02:44.9]} 14. Bxe5 {[%clk 0:02:37.3]} 14... O-O {[%clk 0:02:44.5]} 15. Qg4
{[%clk 0:02:32.9]} 15... g6 {[%clk 0:02:19.1]} 16. Rab1 {[%clk 0:02:24.5]} 16...
Rfc8 {[%clk 0:02:14.1]} 17. Rb3 {[%clk 0:02:19.7]} 17... Bf8 {[%clk 0:02:10.9]}
18. Qf3 {[%clk 0:02:12.2]} 18... Bg7 {[%clk 0:01:53.1]} 19. Rxb7 {[%clk
0:02:10.7]} 19... Qe8 {[%clk 0:01:53.4]} 20. Bxg7 {[%clk 0:01:42.7]} 20... Kxg7
{[%clk 0:01:53]} 21. Rfb1 {[%clk 0:01:43.1]} 21... a5 {[%clk 0:01:40.6]} 22. h4
{[%clk 0:01:39.7]} 22... h5 {[%clk 0:01:39.6]} 23. Qe4 {[%clk 0:01:36.5]} 23...
Rxc3 {[%clk 0:01:19.9]} 24. d5 {[%clk 0:01:31.5]} 24... e5 {[%clk 0:00:38.2]}
25. d6 {[%clk 0:01:26]} 25... Qe6 {[%clk 0:00:20.4]} 26. Re7 {[%clk 0:01:00.9]}
26... Qxd6 {[%clk 0:00:19.8]} 27. Rxe5 {[%clk 0:00:43.8]} 27... Rac8 {[%clk
0:00:16.1]} 28. Re1 {[%clk 0:00:40.1]} 28... Rc1 {[%clk 0:00:15.3]} 29. g3
{[%clk 0:00:23]} 29... Rxe1+ {[%clk 0:00:14.9]} 30. Qxe1 {[%clk 0:00:23.9]}
30... Rc1 {[%clk 0:00:10.2]} 31. Qxc1 {[%clk 0:00:22.3]} 31... Qxe5 {[%clk
0:00:10.8]} 32. Qd2 {[%clk 0:00:20.8]} 32... Qa1+ {[%clk 0:00:07.7]} 33. Kg2
{[%clk 0:00:20.5]} 33... Qe5 {[%clk 0:00:08.6]} 34. Kf3 {[%clk 0:00:19.2]} 34...
Qf5+ {[%clk 0:00:07.9]} 35. Ke3 {[%clk 0:00:19.6]} 35... Qe5+ {[%clk 0:00:08.5]}
36. Kd3 {[%clk 0:00:20.2]} 36... Qd5+ {[%clk 0:00:08.2]} 37. Kc3 {[%clk
0:00:20.9]} 37... Qc5+ {[%clk 0:00:08.3]} 38. Kb3 {[%clk 0:00:21.2]} 38... Qb5+
{[%clk 0:00:07.9]} 39. Ka3 {[%clk 0:00:20.7]} 39... Qc5+ {[%clk 0:00:06.2]} 40.
Ka4 {[%clk 0:00:20.7]} 40... Kh7 {[%clk 0:00:04.5]} 41. a3 {[%clk 0:00:18.1]}
41... Kg7 {[%clk 0:00:03.7]} 42. f4 {[%clk 0:00:15.6]} 42... Qc4+ {[%clk
0:00:01.6]} 43. Kxa5 {[%clk 0:00:15.3]} 43... Qc5+ {[%clk 0:00:02.2]} 44. Ka4
{[%clk 0:00:15.2]} 44... Qc4+ {[%clk 0:00:02.5]} 45. Qb4 {[%clk 0:00:15.8]}
45... Qc2+ {[%clk 0:00:02.8]} 46. Qb3 {[%clk 0:00:15.3]} 46... Qc6+ {[%clk
0:00:01.9]} 47. Kb4 {[%clk 0:00:13]} 47... Qd6+ {[%clk 0:00:01.4]} 48. Kc4
{[%clk 0:00:13.5]} 48... Qc6+ {[%clk 0:00:00.5]} 49. Kd3 {[%clk 0:00:13]} 49...
Qf3+ {[%clk 0:00:00.5]} 50. Kc2 {[%clk 0:00:13.8]} 50... Qe2+ {[%clk 0:00:00.5]}
51. Kc3 {[%clk 0:00:14.4]} 51... Qf3+ {[%clk 0:00:00.5]} 52. Kb2 {[%clk
0:00:15]} 1-0

[Event "Late-Titled-Tuesday-Blitz-April-30-2024"]
[Site "Chess.com"]
[Date "2024.04.30"]
[Round "4"]
[White "HajiyevKanan"]
[Black "Harsha_Bharathakoti"]
[Result "1-0"]
[WhiteElo "2627"]
[BlackElo "2892"]
[TimeControl "180+1"]
[EndTime "14:41:09 PDT"]
[Termination "HajiyevKanan won by resignation"]

1. d4 {[%clk 0:03:00.9]} 1... e6 {[%clk 0:02:55.4]} 2. Nf3 {[%clk 0:03:00]} 2...
c5 {[%clk 0:02:55]} 3. e3 {[%clk 0:02:59.5]} 3... Nf6 {[%clk 0:02:53.9]} 4. Be2
{[%clk 0:03:00]} 4... d5 {[%clk 0:02:54.2]} 5. O-O {[%clk 0:03:00.5]} 5... Nbd7
{[%clk 0:02:51.9]} 6. b3 {[%clk 0:03:01]} 6... b6 {[%clk 0:02:51.2]} 7. Bb2
{[%clk 0:03:01.4]} 7... Bb7 {[%clk 0:02:52]} 8. c4 {[%clk 0:03:01.9]} 8... Bd6
{[%clk 0:02:52.6]} 9. Nc3 {[%clk 0:03:01.2]} 9... cxd4 {[%clk 0:02:52.4]} 10.
Nxd4 {[%clk 0:03:01.1]} 10... O-O {[%clk 0:02:52.4]} 11. cxd5 {[%clk 0:02:56.2]}
11... Nxd5 {[%clk 0:02:52.3]} 12. Bf3 {[%clk 0:02:56.3]} 12... N7f6 {[%clk
0:02:49.5]} 13. Nxd5 {[%clk 0:02:55.9]} 13... Nxd5 {[%clk 0:02:47.9]} 14. Nb5
{[%clk 0:02:52.1]} 14... Be7 {[%clk 0:02:43.5]} 15. Rc1 {[%clk 0:02:45.1]} 15...
a6 {[%clk 0:02:42.8]} 16. Bxd5 {[%clk 0:02:38.2]} 16... exd5 {[%clk 0:02:31.7]}
17. Qg4 {[%clk 0:02:28.5]} 17... f6 {[%clk 0:02:24.8]} 18. Nc7 {[%clk 0:02:22]}
18... Bc8 {[%clk 0:02:10.1]} 19. Ne6 {[%clk 0:01:57.1]} 19... Bxe6 {[%clk
0:02:07.4]} 20. Qxe6+ {[%clk 0:01:58]} 20... Kh8 {[%clk 0:02:05.5]} 21. Rfd1
{[%clk 0:01:57.7]} 21... Bc5 {[%clk 0:02:03]} 22. Rxd5 {[%clk 0:01:55.2]} 22...
Qe8 {[%clk 0:02:02.2]} 23. Qxe8 {[%clk 0:01:50.6]} 23... Rfxe8 {[%clk
0:02:03.1]} 24. Rcd1 {[%clk 0:01:46]} 24... Rac8 {[%clk 0:01:59.5]} 25. h4
{[%clk 0:01:43]} 25... Kg8 {[%clk 0:01:45.4]} 26. a3 {[%clk 0:01:39.8]} 26...
Kf7 {[%clk 0:01:45]} 27. b4 {[%clk 0:01:39.8]} 27... Be7 {[%clk 0:01:43]} 28.
Bd4 {[%clk 0:01:37]} 28... Rc6 {[%clk 0:01:42.6]} 29. Rd7 {[%clk 0:01:34.9]}
29... Ke6 {[%clk 0:01:34.1]} 30. Rb7 {[%clk 0:01:34.9]} 30... b5 {[%clk
0:01:34.7]} 31. h5 {[%clk 0:01:34.9]} 31... g6 {[%clk 0:01:34.5]} 32. hxg6
{[%clk 0:01:31.4]} 32... hxg6 {[%clk 0:01:35.4]} 33. g4 {[%clk 0:01:22.3]} 33...
Rd8 {[%clk 0:01:00.8]} 34. Kg2 {[%clk 0:01:18.1]} 34... Rh8 {[%clk 0:00:51.9]}
35. g5 {[%clk 0:01:14.4]} 35... Rh5 {[%clk 0:00:51.4]} 36. gxf6 {[%clk
0:01:05.3]} 36... Bxf6 {[%clk 0:00:51]} 37. Bxf6 {[%clk 0:00:41.5]} 37... Kxf6
{[%clk 0:00:51.9]} 38. Rbd7 {[%clk 0:00:37.9]} 38... Re5 {[%clk 0:00:47.4]} 39.
R1d6+ {[%clk 0:00:37]} 39... Re6 {[%clk 0:00:48]} 40. Rxe6+ {[%clk 0:00:37.1]}
40... Kxe6 {[%clk 0:00:48.8]} 41. Ra7 {[%clk 0:00:37.4]} 41... Kd5 {[%clk
0:00:48.6]} 42. f4 {[%clk 0:00:27.1]} 42... Kc4 {[%clk 0:00:36.7]} 43. e4 {[%clk
0:00:27.1]} 43... Kd4 {[%clk 0:00:29.4]} 44. Re7 {[%clk 0:00:21.5]} 44... Rc3
{[%clk 0:00:24.9]} 45. f5 {[%clk 0:00:19.6]} 45... gxf5 {[%clk 0:00:23.4]} 46.
exf5 {[%clk 0:00:20.5]} 46... Rxa3 {[%clk 0:00:13.7]} 47. f6 {[%clk 0:00:20.5]}
47... Ra2+ {[%clk 0:00:14.4]} 48. Kg3 {[%clk 0:00:20.6]} 48... Ra1 {[%clk
0:00:15.1]} 49. Kg2 {[%clk 0:00:17.7]} 49... Ra2+ {[%clk 0:00:15]} 50. Kg3
{[%clk 0:00:16.1]} 50... Ra1 {[%clk 0:00:15.4]} 51. Kf2 {[%clk 0:00:14.9]} 51...
Ra2+ {[%clk 0:00:04.6]} 52. Re2 {[%clk 0:00:14.5]} 1-0

[Event "Late-Titled-Tuesday-Blitz-April-30-2024"]
[Site "Chess.com"]
[Date "2024.04.30"]
[Round "4"]
[White "Roedor"]
[Black "kinga2008"]
[Result "1-0"]
[WhiteElo "2372"]
[BlackElo "2499"]
[TimeControl "180+1"]
[EndTime "14:41:09 PDT"]
[Termination "Roedor won by checkmate"]

1. c4 {[%clk 0:03:00.9]} 1... e5 {[%clk 0:02:59.9]} 2. g3 {[%clk 0:02:59.7]}
2... Nf6 {[%clk 0:02:59]} 3. Bg2 {[%clk 0:02:59.7]} 3... c6 {[%clk 0:02:58.4]}
4. d4 {[%clk 0:02:59.3]} 4... e4 {[%clk 0:02:57.2]} 5. a3 {[%clk 0:02:59.2]}
5... d5 {[%clk 0:02:56.5]} 6. Nc3 {[%clk 0:02:59.4]} 6... Nbd7 {[%clk
0:02:51.7]} 7. f3 {[%clk 0:02:57.5]} 7... Nb6 {[%clk 0:02:47.9]} 8. cxd5 {[%clk
0:02:49.9]} 8... exf3 {[%clk 0:02:46.3]} 9. Nxf3 {[%clk 0:02:49.7]} 9... Nbxd5
{[%clk 0:02:31.6]} 10. O-O {[%clk 0:02:43]} 10... Nxc3 {[%clk 0:02:29]} 11. bxc3
{[%clk 0:02:43.9]} 11... Be7 {[%clk 0:02:27.8]} 12. Ne5 {[%clk 0:02:38.3]} 12...
O-O {[%clk 0:02:26.6]} 13. e4 {[%clk 0:02:37.1]} 13... Bd6 {[%clk 0:02:21.8]}
14. Nd3 {[%clk 0:02:32.7]} 14... Bc7 {[%clk 0:02:15.4]} 15. Bg5 {[%clk
0:02:30.4]} 15... h6 {[%clk 0:01:58.6]} 16. Bxf6 {[%clk 0:02:28.7]} 16... gxf6
{[%clk 0:01:57.5]} 17. Qh5 {[%clk 0:02:24.9]} 17... Kg7 {[%clk 0:01:54]} 18. Rf2
{[%clk 0:01:59.3]} 18... f5 {[%clk 0:01:51.8]} 19. Raf1 {[%clk 0:01:57.3]} 19...
Qg5 {[%clk 0:01:49.9]} 20. Qxg5+ {[%clk 0:01:51.9]} 20... hxg5 {[%clk
0:01:50.8]} 21. exf5 {[%clk 0:01:52.4]} 21... f6 {[%clk 0:01:49.2]} 22. Re2
{[%clk 0:01:47.3]} 22... Bd6 {[%clk 0:01:44.7]} 23. a4 {[%clk 0:01:46.4]} 23...
Bd7 {[%clk 0:01:42.1]} 24. g4 {[%clk 0:01:44.4]} 24... Rae8 {[%clk 0:01:41.2]}
25. Rfe1 {[%clk 0:01:44.1]} 25... Rxe2 {[%clk 0:01:38]} 26. Rxe2 {[%clk
0:01:45]} 26... b6 {[%clk 0:01:33.4]} 27. h3 {[%clk 0:01:35.3]} 27... c5 {[%clk
0:01:29.6]} 28. dxc5 {[%clk 0:01:31.1]} 28... bxc5 {[%clk 0:01:29.2]} 29. a5
{[%clk 0:01:27.2]} 29... Bb5 {[%clk 0:01:28.2]} 30. Re6 {[%clk 0:01:21.8]} 30...
Rd8 {[%clk 0:01:27.2]} 31. Bf1 {[%clk 0:01:09.6]} 31... Bc4 {[%clk 0:01:23]} 32.
Nf4 {[%clk 0:00:52.2]} 32... Bxf4 {[%clk 0:00:34.2]} 33. Bxc4 {[%clk 0:00:48]}
33... Rd7 {[%clk 0:00:34.2]} 34. Ra6 {[%clk 0:00:39.5]} 34... Be5 {[%clk
0:00:28.4]} 35. Be6 {[%clk 0:00:36.9]} 35... Rc7 {[%clk 0:00:28]} 36. c4 {[%clk
0:00:36.2]} 36... Bc3 {[%clk 0:00:27.4]} 37. Kg2 {[%clk 0:00:34.9]} 37... Bb4
{[%clk 0:00:22.1]} 38. Kf3 {[%clk 0:00:34.7]} 38... Be1 {[%clk 0:00:22.7]} 39.
Ke4 {[%clk 0:00:34.5]} 39... Bf2 {[%clk 0:00:18.1]} 40. Kd5 {[%clk 0:00:33.6]}
40... Rb7 {[%clk 0:00:18.7]} 41. Kc6 {[%clk 0:00:30.5]} 41... Re7 {[%clk
0:00:07.6]} 42. Kd6 {[%clk 0:00:30.4]} 42... Rb7 {[%clk 0:00:07.3]} 43. Rc6
{[%clk 0:00:29.8]} 43... Be1 {[%clk 0:00:03.7]} 44. a6 {[%clk 0:00:29.2]} 44...
Rb3 {[%clk 0:00:01.8]} 45. Rc7+ {[%clk 0:00:28.6]} 45... Kh6 {[%clk 0:00:01.9]}
46. Rxa7 {[%clk 0:00:25.2]} 46... Bg3+ {[%clk 0:00:01.4]} 47. Kc6 {[%clk
0:00:22.4]} 47... Ra3 {[%clk 0:00:01.6]} 48. Bg8 {[%clk 0:00:20.5]} 48... Bf4
{[%clk 0:00:00.4]} 49. Rh7# {[%clk 0:00:20.2]} 1-0

[Event "Late-Titled-Tuesday-Blitz-April-30-2024"]
[Site "Chess.com"]
[Date "2024.04.30"]
[Round "4"]
[White "Good_Knight_Kiss"]
[Black "flubs"]
[Result "0-1"]
[WhiteElo "2344"]
[BlackElo "2510"]
[TimeControl "180+1"]
[EndTime "14:41:10 PDT"]
[Termination "flubs won on time"]

1. e4 {[%clk 0:03:00.9]} 1... c6 {[%clk 0:02:57.7]} 2. d4 {[%clk 0:03:00.6]}
2... d5 {[%clk 0:02:57.2]} 3. e5 {[%clk 0:03:01.3]} 3... Bf5 {[%clk 0:02:56.2]}
4. h4 {[%clk 0:03:00.9]} 4... h6 {[%clk 0:02:56.1]} 5. g4 {[%clk 0:02:59.9]}
5... Bd7 {[%clk 0:02:56.2]} 6. h5 {[%clk 0:02:59.8]} 6... e6 {[%clk 0:02:55.8]}
7. f4 {[%clk 0:03:00]} 7... c5 {[%clk 0:02:55.2]} 8. c3 {[%clk 0:03:00.4]} 8...
Nc6 {[%clk 0:02:55]} 9. Nf3 {[%clk 0:03:00.3]} 9... Rc8 {[%clk 0:02:54.9]} 10.
Be3 {[%clk 0:02:42.3]} 10... Qb6 {[%clk 0:02:51.9]} 11. Rh2 {[%clk 0:02:41.5]}
11... cxd4 {[%clk 0:02:50.1]} 12. Nxd4 {[%clk 0:02:31.9]} 12... Bc5 {[%clk
0:02:47.6]} 13. Na3 {[%clk 0:02:11.9]} 13... Nxd4 {[%clk 0:02:39.7]} 14. Bxd4
{[%clk 0:02:09.6]} 14... Bxd4 {[%clk 0:02:38.9]} 15. Qxd4 {[%clk 0:02:08.6]}
15... Qxd4 {[%clk 0:02:36.5]} 16. cxd4 {[%clk 0:02:08.7]} 16... a6 {[%clk
0:02:31.3]} 17. Rc2 {[%clk 0:02:01.2]} 17... Rxc2 {[%clk 0:02:25.8]} 18. Nxc2
{[%clk 0:02:02.1]} 18... Ne7 {[%clk 0:02:25.5]} 19. Nb4 {[%clk 0:01:57.3]} 19...
g6 {[%clk 0:02:14.7]} 20. Bd3 {[%clk 0:01:40.2]} 20... gxh5 {[%clk 0:02:13.4]}
21. gxh5 {[%clk 0:01:39.9]} 21... Rg8 {[%clk 0:02:10.9]} 22. Kf2 {[%clk
0:01:38.1]} 22... Rg4 {[%clk 0:02:05.6]} 23. Kf3 {[%clk 0:01:30.9]} 23... Rg7
{[%clk 0:01:49]} 24. Rc1 {[%clk 0:01:25.6]} 24... Kd8 {[%clk 0:01:47.7]} 25. Bb1
{[%clk 0:00:50.7]} 25... Be8 {[%clk 0:01:46.6]} 26. Nd3 {[%clk 0:00:46.9]} 26...
Bc6 {[%clk 0:01:19.7]} 27. Nf2 {[%clk 0:00:43.5]} 27... Bb5 {[%clk 0:00:51.4]}
28. b3 {[%clk 0:00:31.9]} 28... a5 {[%clk 0:00:46.2]} 29. Rc5 {[%clk 0:00:24.5]}
29... Ba6 {[%clk 0:00:46]} 30. Rxa5 {[%clk 0:00:22.3]} 30... Nc6 {[%clk
0:00:46.2]} 31. Ra4 {[%clk 0:00:20.6]} 31... Bb5 {[%clk 0:00:41.5]} 32. Ra8+
{[%clk 0:00:18.9]} 32... Kc7 {[%clk 0:00:41.9]} 33. Rh8 {[%clk 0:00:08.6]} 33...
Nxd4+ {[%clk 0:00:39.8]} 34. Ke3 {[%clk 0:00:09]} 34... Nc6 {[%clk 0:00:29.4]}
35. Rxh6 {[%clk 0:00:09.1]} 35... Rg3+ {[%clk 0:00:28.9]} 36. Kd2 {[%clk
0:00:08.9]} 36... Rf3 {[%clk 0:00:27.9]} 37. Nd3 {[%clk 0:00:05.5]} 37... Bxd3
{[%clk 0:00:20.6]} 38. Bxd3 {[%clk 0:00:06.4]} 38... Rxf4 {[%clk 0:00:20.8]} 39.
Rf6 {[%clk 0:00:06.7]} 39... Rh4 {[%clk 0:00:17.5]} 40. Rxf7+ {[%clk 0:00:05.5]}
40... Kb6 {[%clk 0:00:18]} 41. Bg6 {[%clk 0:00:02.9]} 41... Nxe5 {[%clk
0:00:16.9]} 42. Rf6 {[%clk 0:00:03.1]} 42... Rh2+ {[%clk 0:00:16.2]} 43. Ke3
{[%clk 0:00:02.7]} 43... Ng4+ {[%clk 0:00:15.4]} 44. Kf4 {[%clk 0:00:02.8]}
44... Nxf6 {[%clk 0:00:16.1]} 45. Kg5 {[%clk 0:00:00.9]} 45... Nxh5 {[%clk
0:00:15.8]} 46. Bxh5 {[%clk 0:00:01.1]} 46... Kc5 {[%clk 0:00:15.6]} 47. Bf7
{[%clk 0:00:02]} 47... e5 {[%clk 0:00:15.6]} 48. a3 {[%clk 0:00:01.8]} 48... e4
{[%clk 0:00:15.9]} 49. b4+ {[%clk 0:00:02.2]} 49... Kd6 {[%clk 0:00:16]} 50. Kg4
{[%clk 0:00:02.2]} 50... Rf2 {[%clk 0:00:15.9]} 51. Bg8 {[%clk 0:00:01.9]} 51...
e3 {[%clk 0:00:15.7]} 52. Kg3 {[%clk 0:00:02.2]} 52... Rf8 {[%clk 0:00:15.3]}
53. Bh7 {[%clk 0:00:01.8]} 53... e2 {[%clk 0:00:15.8]} 0-1

[Event "Late-Titled-Tuesday-Blitz-April-30-2024"]
[Site "Chess.com"]
[Date "2024.04.30"]
[Round "4"]
[White "manitodeplomo"]
[Black "rezamahdavi2008"]
[Result "0-1"]
[WhiteElo "2615"]
[BlackElo "2918"]
[TimeControl "180+1"]
[EndTime "14:41:17 PDT"]
[Termination "rezamahdavi2008 won by resignation"]

1. d4 {[%clk 0:02:57.3]} 1... Nf6 {[%clk 0:02:59.1]} 2. c4 {[%clk 0:02:57]} 2...
b6 {[%clk 0:02:59.8]} 3. Nf3 {[%clk 0:02:53.1]} 3... Bb7 {[%clk 0:02:58]} 4. g3
{[%clk 0:02:53.2]} 4... g6 {[%clk 0:02:57.9]} 5. Bg2 {[%clk 0:02:53]} 5... Bg7
{[%clk 0:02:55]} 6. Nc3 {[%clk 0:02:53.6]} 6... Ne4 {[%clk 0:02:53.6]} 7. Bd2
{[%clk 0:02:53.1]} 7... Nd6 {[%clk 0:02:50.8]} 8. b3 {[%clk 0:02:39.6]} 8...
Bxd4 {[%clk 0:02:49.2]} 9. O-O {[%clk 0:02:37.3]} 9... Bg7 {[%clk 0:02:48.1]}
10. Rc1 {[%clk 0:02:32.9]} 10... O-O {[%clk 0:02:48]} 11. Bf4 {[%clk 0:02:33.1]}
11... Ne8 {[%clk 0:02:37.5]} 12. Qd2 {[%clk 0:02:31.2]} 12... d6 {[%clk
0:02:37.6]} 13. Rfd1 {[%clk 0:02:31.7]} 13... Nd7 {[%clk 0:02:37.9]} 14. Bh6
{[%clk 0:02:29.4]} 14... Nef6 {[%clk 0:02:37.1]} 15. Bxg7 {[%clk 0:02:29.4]}
15... Kxg7 {[%clk 0:02:38]} 16. Nb5 {[%clk 0:02:25.6]} 16... c5 {[%clk
0:02:36.9]} 17. Nc3 {[%clk 0:02:20.6]} 17... a6 {[%clk 0:02:34.1]} 18. Qb2
{[%clk 0:02:20.3]} 18... Kg8 {[%clk 0:02:33.4]} 19. h4 {[%clk 0:02:19]} 19...
Qc7 {[%clk 0:02:32.2]} 20. Rd2 {[%clk 0:02:18.4]} 20... Bc6 {[%clk 0:02:31.1]}
21. Rcd1 {[%clk 0:02:18.2]} 21... Qb7 {[%clk 0:02:28.9]} 22. Ne1 {[%clk
0:02:18.1]} 22... Bxg2 {[%clk 0:02:28.8]} 23. Nxg2 {[%clk 0:02:19]} 23... b5
{[%clk 0:02:28.7]} 24. cxb5 {[%clk 0:02:11.3]} 24... axb5 {[%clk 0:02:29.6]} 25.
Nf4 {[%clk 0:02:11.6]} 25... b4 {[%clk 0:02:22.5]} 26. Ncd5 {[%clk 0:02:10.5]}
26... Nxd5 {[%clk 0:02:23.1]} 27. Nxd5 {[%clk 0:02:11.2]} 27... Nb6 {[%clk
0:02:24]} 28. h5 {[%clk 0:02:09]} 28... Nxd5 {[%clk 0:02:22.4]} 29. Rxd5 {[%clk
0:02:09.9]} 29... Ra3 {[%clk 0:02:16.9]} 30. h6 {[%clk 0:01:43.8]} 30... f6
{[%clk 0:02:16]} 31. Qd2 {[%clk 0:01:42.1]} 31... Rfa8 {[%clk 0:02:08.9]} 32.
Qe3 {[%clk 0:01:41.5]} 32... Kf7 {[%clk 0:02:09.6]} 33. Rxd6 {[%clk 0:01:34.5]}
33... exd6 {[%clk 0:02:08]} 34. Rxd6 {[%clk 0:01:35.4]} 34... Qe7 {[%clk
0:01:52.6]} 35. Qxc5 {[%clk 0:01:33.6]} 35... R3a5 {[%clk 0:01:26.2]} 36. Qc4+
{[%clk 0:01:32.9]} 36... Kf8 {[%clk 0:01:25.6]} 37. Qxb4 {[%clk 0:01:10.2]}
37... R5a6 {[%clk 0:01:00.4]} 38. Rxa6 {[%clk 0:00:39]} 38... Rxa6 {[%clk
0:00:52.2]} 39. Qb8+ {[%clk 0:00:28.4]} 39... Qe8 {[%clk 0:00:51.3]} 40. Qc7
{[%clk 0:00:24.1]} 40... Qa8 {[%clk 0:00:30.6]} 41. Qg7+ {[%clk 0:00:20.2]}
41... Ke8 {[%clk 0:00:30.6]} 42. Qxh7 {[%clk 0:00:20.5]} 42... Rxa2 {[%clk
0:00:29.5]} 43. Qxg6+ {[%clk 0:00:19.7]} 43... Ke7 {[%clk 0:00:30.4]} 44. Qg7+
{[%clk 0:00:19]} 44... Ke6 {[%clk 0:00:30.6]} 45. Qg4+ {[%clk 0:00:18.3]} 45...
Kd6 {[%clk 0:00:31.2]} 46. Qf4+ {[%clk 0:00:13.8]} 46... Ke7 {[%clk 0:00:31.7]}
47. f3 {[%clk 0:00:09.4]} 47... Qa7+ {[%clk 0:00:27.1]} 48. Kf1 {[%clk 0:00:08]}
48... Ra1+ {[%clk 0:00:27.4]} 49. Kg2 {[%clk 0:00:07.9]} 49... Rg1+ {[%clk
0:00:20.6]} 50. Kh3 {[%clk 0:00:07.2]} 50... Rh1+ {[%clk 0:00:20.8]} 51. Kg4
{[%clk 0:00:06.1]} 51... Qd7+ {[%clk 0:00:20.8]} 52. Qf5 {[%clk 0:00:06.1]}
52... Rxh6 {[%clk 0:00:20.1]} 53. Qxd7+ {[%clk 0:00:05.3]} 53... Kxd7 {[%clk
0:00:21]} 54. Kf5 {[%clk 0:00:05.8]} 54... Ke7 {[%clk 0:00:21]} 55. e4 {[%clk
0:00:05.9]} 55... Rh5+ {[%clk 0:00:20.3]} 56. Kf4 {[%clk 0:00:05.8]} 56... Rb5
{[%clk 0:00:21.2]} 0-1